bitfinex/quotes_SOLUSD_20250410
["timestamp","ask_amount","ask_price","bid_price","bid_amount"]
[1744293356903,39.08562575,113.05,113.01,27.49794886]
[1744293357607,47.93142575,113.05,113.01,27.49794886]
[1744293357791,47.93142575,113.05,113.01,66.58357461]
[1744293358598,0.03,113.07,113.03,39.08562575]
[1744293358770,0.03,113.07,113.04,57.73527461]
[1744293359175,39.11562575,113.07,113.04,18.64964886]
[1744293359402,47.95972575,113.07,113.03,39.08562575]
[1744293359600,39.11562575,113.07,113.03,47.93202575]
[1744293359980,0.03,113.07,113.03,47.93202575]
[1744293360283,39.11562575,113.07,113.03,47.93202575]
[1744293360476,0.03,113.07,113.04,57.73527461]
[1744293361024,0.03,113.07,113.05,39.08562575]
[1744293361371,0.03,113.07,113.06,58.01959775]
[1744293361574,0.03,113.07,113.06,66.86439775]
[1744293361988,0.03,113.07,113.05,81.2]
[1744293362194,39.11562575,113.07,113.03,18.64964886]
[1744293362480,26.03,113.07,113.03,27.49644886]
[1744293362680,65.11562575,113.07,113.03,27.49644886]
[1744293362899,26.03,113.07,113.03,66.58207461]
[1744293363174,0.03,113.07,113.06,18.64964886]
[1744293363506,0.03,113.07,113.05,39.08562575]
[1744293364096,0.03,113.07,113.04,47.93142575]
[1744293364314,0.03,113.07,113.05,57.73527461]
[1744293365001,0.03,113.07,113.06,57.73527461]
[1744293365174,0.03,113.07,113.05,18.64964886]
[1744293365376,0.03,113.07,113.03,47.93242575]
[1744293365575,39.08562575,113.06,113.01,57.73527461]
[1744293365803,39.08562575,113.03,113.0,13.983]
[1744293365982,39.08562575,113.02,113.0,0.063]
[1744293366602,39.08562575,113.03,113.0,0.063]
[1744293366782,26.0,113.05,113.01,18.64964886]
[1744293366989,65.08562575,113.05,113.01,57.73527461]
[1744293367503,34.8448,113.06,113.0,0.063]
[1744293367678,34.8448,113.06,113.0,57.79827461]
[1744293367875,39.08562575,113.01,113.0,0.063]
[1744293368180,47.93432575,113.01,113.0,0.063]
[1744293368379,48.21864889,113.01,113.0,0.063]
[1744293368580,26.0,112.98,112.93,0.063]
[1744293368901,39.08562575,112.97,112.93,39.14862575]
[1744293369602,39.08562575,112.97,112.93,0.063]
[1744293369806,26.0,112.98,112.94,39.08562575]
[1744293370101,65.08562575,112.98,112.93,66.65307461]
[1744293370397,65.08562575,112.98,112.93,39.14862575]
[1744293370398,39.08562575,112.97,112.93,39.14862575]
[1744293370595,39.08562575,112.97,112.93,0.063]
[1744293370782,34.8518,112.98,112.93,0.063]
[1744293370981,39.08562575,112.97,112.93,8.918]
[1744293371198,26.0,112.98,112.94,39.08562575]
[1744293371700,26.0,112.98,112.95,39.08562575]
[1744293371901,8.8498,113.0,112.95,39.08562575]
[1744293371902,39.08562575,112.99,112.95,39.08562575]
[1744293372202,47.93472575,113.01,112.97,39.08562575]
[1744293372385,8.8464,113.04,112.98,66.58637461]
[1744293372700,39.08562575,113.03,112.99,39.08562575]
[1744293372899,24.7438,113.05,113.01,18.64964886]
[1744293372900,8.846,113.05,113.01,18.64964886]
[1744293373079,47.93162575,113.05,112.99,18.933972]
[1744293373278,58.70542575,113.06,113.01,39.08562575]
[1744293373491,8.8451,113.06,113.01,39.08562575]
[1744293373695,39.08562575,113.05,113.01,39.08562575]
[1744293373890,39.08562575,113.05,112.99,18.64964886]
[1744293374099,39.08562575,113.03,112.99,39.08562575]
[1744293374501,8.8479,113.02,112.98,129.13672575]
[1744293374678,8.8479,113.02,112.98,47.93672575]
[1744293374890,47.93352575,113.02,112.97,27.50104886]
[1744293375095,47.93352575,113.02,112.98,39.08562575]
[1744293375502,8.8479,113.02,112.98,39.08562575]
[1744293375698,47.93352575,113.02,112.97,27.50104886]
[1744293376027,47.93352575,113.02,112.98,39.08562575]
[1744293376202,47.93312575,113.03,112.98,47.93642575]
[1744293376397,39.08562575,113.04,112.99,39.08562575]
[1744293376703,39.08562575,113.05,113.0,39.08562575]
[1744293376906,39.08562575,113.06,113.02,39.08562575]
[1744293377108,0.03,113.07,113.04,39.08562575]
[1744293378005,0.03,113.07,113.06,57.73527461]
[1744293378206,0.03,113.07,113.06,66.72223618]
[1744293378417,0.03,113.07,113.06,66.86439775]
[1744293378712,0.03,113.07,113.06,148.06439775]
[1744293379578,0.03,113.07,113.06,147.78007461]
[1744293380213,0.03,113.07,113.06,108.69444886]
[1744293380510,0.03,113.07,113.04,57.73527461]
[1744293381087,0.03,113.07,113.04,66.58147461]
[1744293381334,39.08562575,113.06,113.0,11.2442]
[1744293381608,39.08562575,113.06,113.02,39.08562575]
[1744293381907,26.0,113.06,113.04,39.08562575]
[1744293382410,26.0,113.06,113.03,57.73527461]
[1744293382719,73.93062575,113.06,113.02,47.93312575]
[1744293382910,34.845,113.06,113.02,47.93312575]
[1744293383086,73.93062575,113.06,113.01,147.78377461]
[1744293383391,39.08562575,113.05,113.01,39.08562575]
[1744293383586,34.845,113.06,112.99,22.1256]
[1744293383587,39.08562575,113.04,113.0,18.64964886]
[1744293383807,39.08562575,113.02,112.98,39.08562575]
[1744293384109,39.08562575,113.01,112.96,39.08562575]
[1744293384290,39.08562575,113.01,112.96,47.93792575]
[1744293384291,39.08562575,113.0,112.96,47.93792575]
[1744293384497,8.8492,113.01,112.95,47.93882575]
[1744293384800,8.8492,113.01,112.95,57.73527461]
[1744293385001,39.08562575,112.99,112.95,39.08562575]
[1744293385194,65.08562575,112.98,112.93,8.9177]
[1744293385398,39.08562575,112.97,112.93,39.14862575]
[1744293385607,39.08562575,112.97,112.93,48.00322575]
[1744293385802,65.08562575,112.98,112.94,39.08562575]
[1744293386003,26.0,112.98,112.95,57.73527461]
[1744293386183,8.8483,113.02,112.97,18.64964886]
[1744293386389,8.8464,113.04,112.98,39.08562575]
[1744293386606,39.08562575,113.03,112.98,57.73527461]
[1744293387307,19.5597,113.05,112.99,58.64536214]
[1744293387515,58.64536214,113.03,112.99,58.64536214]
[1744293387693,58.64536214,113.03,112.98,18.64964886]
[1744293387890,41.6738,113.05,112.98,18.64964886]
[1744293387891,58.64536214,113.02,112.98,77.295011]
[1744293388191,58.64536214,113.02,112.98,86.145411]
[1744293388418,67.49266214,113.03,112.98,86.145411]
[1744293388617,67.49266214,113.03,112.99,58.64536214]
[1744293388820,8.8473,113.03,112.99,58.64536214]
[1744293389116,26.0,113.03,113.0,58.64536214]
[1744293389503,58.64536214,113.05,113.0,58.64536214]
[1744293389728,58.64536214,113.05,112.98,49.62784886]
[1744293389729,58.67536214,113.07,113.03,58.64536214]
[1744293389896,0.03,113.07,113.03,58.64536214]
[1744293390403,67.51946214,113.07,113.02,67.49326214]
[1744293391107,58.64536214,113.06,113.02,67.49326214]
[1744293391504,58.64536214,113.05,112.99,27.49994886]
[1744293391709,58.64536214,113.05,113.0,58.64536214]
[1744293392303,67.49156214,113.05,113.0,67.49456214]
[1744293392529,58.64536214,113.04,112.99,86.144911]
[1744293392710,58.64536214,113.04,113.0,58.64536214]
[1744293393638,58.64536214,113.04,112.99,86.144911]
[1744293393801,58.64536214,113.03,112.99,86.144911]
[1744293394000,8.8462,113.05,112.99,86.144911]
[1744293394220,58.64536214,113.04,112.99,86.144911]
[1744293394427,58.64536214,113.04,113.0,58.64536214]
[1744293394634,58.64536214,113.04,113.0,67.49476214]
[1744293394925,58.64536214,113.05,113.0,67.49476214]
[1744293395130,58.64536214,113.05,113.0,58.64536214]
[1744293395327,58.64536214,113.01,112.98,81.2]
[1744293395625,58.64536214,113.0,112.95,67.49836214]
[1744293395931,58.64536214,112.99,112.95,67.49836214]
[1744293396101,58.64536214,113.0,112.95,67.49836214]
[1744293396427,26.0,113.01,112.97,58.64536214]
[1744293396600,26.0,113.0,112.98,67.49646214]
[1744293396803,26.0,113.0,112.97,67.49686214]
[1744293397528,84.64536214,113.01,112.97,67.49686214]
[1744293397830,26.0,113.01,112.97,67.49686214]
[1744293398015,26.0,113.01,112.98,58.64536214]
[1744293398725,34.8488,113.01,112.97,58.64536214]
[1744293398903,93.49416214,113.01,112.96,18.64964886]
[1744293399103,93.49416214,113.01,112.97,58.64536214]
[1744293399305,84.64536214,113.01,112.97,67.49716214]
[1744293399713,26.0,113.01,112.98,58.64536214]
[1744293399915,34.8488,113.01,112.97,67.49716214]
[1744293400309,26.0,113.01,112.99,58.64536214]
[1744293400814,34.8488,113.01,112.97,58.64536214]
[1744293401034,93.49416214,113.01,112.96,77.295011]
[1744293401214,84.64536214,113.01,112.97,58.64536214]
[1744293401531,58.64536214,113.0,112.96,18.64964886]
[1744293401825,58.64536214,113.0,112.96,58.64536214]
[1744293402328,58.64536214,113.0,112.95,67.49876214]
[1744293402736,67.49566214,112.99,112.95,67.49876214]
[1744293402905,58.64536214,112.98,112.94,58.64536214]
[1744293403104,58.64536214,112.97,112.93,67.56306214]
[1744293403301,58.64536214,112.96,112.93,0.063]
[1744293403930,58.64536214,112.95,112.93,0.063]
[1744293404132,26.0,112.94,112.93,0.063]
[1744293405030,84.64536214,112.95,112.93,0.063]
[1744293405235,26.0,112.95,112.93,0.063]
[1744293405540,58.64536214,112.96,112.93,0.063]
[1744293405709,67.49756214,112.97,112.93,0.063]
[1744293405907,22.1209,113.02,112.95,58.64536214]
[1744293406132,8.8487,113.01,112.95,58.64536214]
[1744293406434,58.64536214,112.99,112.95,58.64536214]
[1744293406637,58.64536214,112.99,112.94,58.64536214]
[1744293406928,58.64536214,112.99,112.95,67.49816214]
[1744293408028,22.40522314,113.02,112.95,67.49816214]
[1744293408029,26.0,112.98,112.95,67.49816214]
[1744293408231,58.64536214,112.97,112.93,67.56296214]
[1744293408536,26.0,112.98,112.95,58.64536214]
[1744293408709,26.0,112.97,112.95,58.64536214]
[1744293409232,58.64536214,113.0,112.95,58.64536214]
[1744293409415,39.12231479,113.0,112.95,39.12231479]
[1744293409932,26.0,112.98,112.95,39.12231479]
[1744293410137,26.0,112.98,112.94,66.62536365]
[1744293410339,26.0,112.98,112.94,27.50304886]
[1744293410636,26.0,112.98,112.94,66.62536365]
[1744293411045,47.97351479,112.98,112.93,48.03991479]
[1744293411211,39.12231479,112.97,112.93,48.03991479]
[1744293411411,8.8512,112.98,112.93,48.03991479]
[1744293411611,39.12231479,112.97,112.93,48.03991479]
[1744293411837,39.12231479,112.97,112.93,8.9176]
[1744293412240,39.12231479,112.96,112.93,0.063]
[1744293413234,39.12231479,112.95,112.93,0.063]
[1744293413441,39.12231479,112.96,112.93,0.063]
[1744293413615,47.97301479,112.99,112.94,39.12231479]
[1744293413935,47.97301479,112.99,112.93,18.71264886]
[1744293414138,47.97301479,112.99,112.94,47.97601479]
[1744293414349,39.12231479,112.98,112.94,47.97601479]
[1744293414515,39.12231479,112.98,112.94,8.8537]
[1744293414714,47.97301479,112.99,112.94,47.97601479]
[1744293415214,47.97301479,112.99,112.95,47.97521479]
[1744293415615,47.97231479,113.0,112.95,47.97521479]
[1744293415919,26.0,112.97,112.95,39.12231479]
[1744293416135,26.0,112.97,112.94,47.97611479]
[1744293416939,65.12231479,112.97,112.93,0.063]
[1744293417233,65.12231479,112.97,112.93,8.9177]
[1744293417410,73.97421479,112.97,112.93,48.04001479]
[1744293417744,65.12231479,112.97,112.93,48.04001479]
[1744293418116,65.12231479,112.97,112.93,8.9177]
[1744293418117,73.97421479,112.97,112.93,8.9177]
[1744293418417,39.12231479,112.96,112.93,0.063]
[1744293418619,39.12231479,112.95,112.93,0.063]
[1744293418923,39.12231479,112.96,112.93,0.063]
[1744293419818,73.97421479,112.97,112.93,0.063]
[1744293420237,39.12231479,112.96,112.93,0.063]
[1744293421124,26.0,112.97,112.93,39.18531479]
[1744293421442,8.8509,112.99,112.95,39.12231479]
[1744293421641,47.97321479,112.99,112.95,39.12231479]
[1744293422145,8.8487,113.01,112.96,39.12231479]
[1744293422450,26.0,112.98,112.94,39.12231479]
[1744293423046,26.0,112.98,112.94,8.8542]
[1744293423339,34.8512,112.98,112.93,66.68946365]
[1744293423647,39.12231479,112.94,112.93,0.063]
[1744293424144,39.12231479,112.95,112.93,0.063]
[1744293424532,39.12231479,112.94,112.93,0.063]
[1744293425123,47.97651479,112.94,112.93,0.063]
[1744293425643,48.26083793,112.94,112.93,0.063]
[1744293425846,26.0,112.91,112.9,0.063]
[1744293426055,65.12231479,112.91,112.9,0.063]
[1744293426344,26.0,112.91,112.9,0.063]
[1744293426547,39.12231479,112.93,112.9,0.063]
[1744293427339,47.97741479,112.93,112.9,0.063]
[1744293428048,47.97691479,112.94,112.9,0.063]
[1744293428255,39.12231479,112.94,112.9,39.18531479]
[1744293428570,47.97611479,112.95,112.9,39.18531479]
[1744293428724,8.8519,112.97,112.92,39.12231479]
[1744293428934,39.12231479,112.97,112.93,39.12231479]
[1744293429250,8.8515,112.98,112.94,8.8541]
[1744293429553,47.97381479,112.98,112.94,47.97641479]
[1744293429740,8.8515,112.98,112.94,47.97641479]
[1744293430065,47.97381479,112.98,112.94,47.97641479]
[1744293430246,26.0,112.99,112.95,39.12231479]
[1744293430436,2.7664,113.01,112.94,47.97641479]
[1744293430761,39.12231479,112.99,112.95,39.12231479]
[1744293430952,8.8472,113.03,112.98,39.12231479]
[1744293431253,39.12231479,113.0,112.96,27.50194886]
[1744293431635,39.12231479,112.99,112.95,47.97541479]
[1744293431831,39.12231479,113.0,112.95,47.97541479]
[1744293432036,39.12231479,113.0,112.95,8.8531]
[1744293432261,39.12231479,113.0,112.95,47.97541479]
[1744293432425,65.12231479,112.99,112.95,8.8531]
[1744293432628,26.0,112.99,112.95,47.97541479]
[1744293433025,47.97061479,113.02,112.97,39.12231479]
[1744293433232,11.6534,113.06,113.0,39.12231479]
[1744293433447,47.99751479,113.06,113.01,39.12231479]
[1744293433644,47.99751479,113.06,112.98,60.44166365]
[1744293433849,42.40114666,113.05,113.01,39.12231479]
[1744293434256,42.40114666,113.05,113.0,39.12231479]
[1744293434432,39.12231479,113.04,112.99,39.12231479]
[1744293434751,39.12231479,113.02,112.98,57.77196365]
[1744293435055,47.97031479,113.02,112.98,66.62296365]
[1744293435363,39.12231479,113.0,112.96,66.62426365]
[1744293435660,39.12231479,113.01,112.97,39.12231479]
[1744293435853,39.12231479,113.03,112.99,39.12231479]
[1744293436157,39.12231479,113.04,112.98,18.64964886]
[1744293436358,39.12231479,113.02,112.98,18.64964886]
[1744293436555,39.12231479,113.01,112.97,39.12231479]
[1744293436727,42.40600815,113.03,112.99,39.12231479]
[1744293436934,42.40600815,113.03,112.98,18.64964886]
[1744293437256,42.40600815,113.02,112.98,66.62286365]
[1744293437447,42.40600815,113.02,112.97,57.77196365]
[1744293437838,47.97021479,113.03,112.98,39.12231479]
[1744293438535,8.8479,113.03,112.98,39.12231479]
[1744293438735,39.12231479,113.04,113.0,39.12231479]
[1744293438955,39.12231479,113.04,113.0,18.64964886]
[1744293439159,39.12231479,113.04,113.0,27.49894886]
[1744293439472,47.99831479,113.05,113.0,66.62126365]
[1744293439760,0.03,113.05,113.02,39.12231479]
[1744293439945,0.03,113.05,113.03,39.12231479]
[1744293440347,0.03,113.05,113.01,18.64964886]
[1744293440839,39.15231479,113.05,113.01,57.77196365]
[1744293441038,47.99821479,113.05,113.01,66.62056365]
[1744293441430,47.99821479,113.05,113.0,47.97151479]
[1744293441636,39.12231479,113.04,113.0,47.97151479]
[1744293441834,39.12231479,113.04,113.0,8.8492]
[1744293442348,8.8759,113.05,113.0,8.8492]
[1744293442661,39.12231479,113.02,112.98,39.12231479]
[1744293442850,39.12231479,113.03,112.98,39.12231479]
[1744293443168,39.12231479,113.03,112.99,8.8497]
[1744293443356,39.12231479,113.03,112.96,22.27306157]
[1744293443357,39.12231479,113.0,112.96,27.50224886]
[1744293443539,39.12231479,113.0,112.96,66.62456365]
[1744293444456,39.12231479,112.99,112.95,19.7478]
[1744293444663,0.03,113.05,112.98,57.77196365]
[1744293444840,0.03,113.05,113.01,39.12231479]
[1744293445046,39.12231479,113.04,113.0,39.12231479]
[1744293445359,39.12231479,113.04,113.0,47.97161479]
[1744293445536,47.99831479,113.05,113.0,47.97161479]
[1744293445741,0.03,113.05,113.03,39.12231479]
[1744293446146,0.03,113.05,113.01,29.97184886]
[1744293446641,0.03,113.05,113.02,39.12231479]
[1744293446855,0.03,113.05,113.03,39.12231479]
[1744293447065,0.03,113.05,113.02,18.64964886]
[1744293447270,39.12231479,113.04,112.99,8.8503]
[1744293447475,39.12231479,113.03,112.99,8.8503]
[1744293447680,0.03,113.05,113.0,18.64964886]
[1744293447989,0.03,113.05,113.02,18.64964886]
[1744293448282,39.15231479,113.05,113.0,39.12231479]
[1744293448654,0.03,113.05,113.03,18.64964886]
[1744293448853,0.03,113.05,113.04,18.64964886]
[1744293449284,0.03,113.05,113.04,66.61836365]
[1744293449484,0.03,113.05,113.04,8.8464]
[1744293449653,0.03,113.05,113.03,47.96941479]
[1744293449854,0.03,113.05,113.03,8.8471]
[1744293450081,0.03,113.05,113.03,47.96941479]
[1744293450452,0.03,113.05,113.04,39.12231479]
[1744293450657,0.03,113.05,113.03,8.8471]
[1744293450879,0.03,113.05,113.04,18.64964886]
[1744293451057,0.03,113.05,113.04,57.77196365]
[1744293451262,0.03,113.05,113.04,27.49604886]
[1744293452365,0.03,113.05,113.04,66.61836365]
[1744293452585,0.03,113.05,113.04,27.49604886]
[1744293452760,0.03,113.05,113.04,66.90268679]
[1744293452955,0.03,113.05,113.04,38.71624886]
[1744293453155,0.03,113.05,113.04,77.83856365]
[1744293453358,0.03,113.05,113.04,78.12288679]
[1744293453779,0.03,113.07,113.06,44.64964886]
[1744293453956,0.03,113.07,113.06,57.77196365]
[1744293455187,0.03,113.07,113.06,18.64964886]
[1744293455362,0.03,113.07,113.06,66.61676365]
[1744293455877,0.03,113.07,113.06,27.49444886]
[1744293456079,0.03,113.07,113.06,66.90108679]
[1744293457260,0.03,113.07,113.06,148.10108679]
[1744293457784,0.03,113.07,113.06,108.978772]
[1744293458081,0.03,113.07,113.06,148.10108679]
[1744293458456,0.03,113.07,113.06,108.69444886]
[1744293458658,0.03,113.07,113.06,39.12231479]
[1744293458961,0.03,113.07,113.05,47.96751479]
[1744293459162,0.03,113.07,113.05,47.96781479]
[1744293459562,0.03,113.07,113.04,66.61796365]
[1744293460288,39.12231479,113.05,112.99,81.2]
[1744293460484,26.0,113.06,112.99,120.32231479]
[1744293460659,39.12231479,113.05,113.0,8.8495]
[1744293460980,39.12231479,113.05,113.01,57.77196365]
[1744293461674,39.12231479,113.05,113.01,66.62006365]
[1744293461869,8.8742,113.07,113.04,39.12231479]
[1744293462076,0.03,113.07,113.04,39.12231479]
[1744293463578,0.03,113.07,113.05,39.12231479]
[1744293463775,0.03,113.07,113.06,57.77196365]
[1744293463978,0.03,113.07,113.06,58.05628679]
[1744293464685,0.03,113.07,113.06,57.77196365]
[1744293465075,0.03,113.07,113.06,18.64964886]
[1744293465275,0.03,113.07,113.06,57.77196365]
[1744293465477,0.03,113.07,113.06,58.05628679]
[1744293465699,0.03,113.07,113.06,66.90108679]
[1744293465876,0.03,113.07,113.06,148.10108679]
[1744293468578,0.03,113.07,113.06,108.69444886]
[1744293468797,0.03,113.07,113.04,57.77196365]
[1744293468991,0.03,113.07,113.05,39.12231479]
[1744293469306,0.03,113.07,113.04,18.64964886]
[1744293469477,0.03,113.07,113.04,77.22947929]
[1744293469805,0.03,113.07,113.04,86.07547929]
[1744293469980,0.03,113.07,113.02,92.3548]
[1744293470178,0.03,113.07,113.03,77.22947929]
[1744293470374,58.57983043,113.06,113.02,18.64964886]
[1744293470575,58.57983043,113.06,113.02,58.57983043]
[1744293470772,58.57983043,113.06,113.01,22.6483]
[1744293470992,58.57983043,113.05,113.01,13.8]
[1744293471187,58.57983043,113.05,113.01,18.64964886]
[1744293471793,8.8464,113.04,113.0,67.42883043]
[1744293472604,58.57983043,113.03,112.99,0.063]
[1744293472903,84.57983043,113.01,112.99,0.063]
[1744293473107,58.57983043,113.0,112.99,0.063]
[1744293473478,8.8464,113.04,112.99,86.14277929]
[1744293473683,8.8464,113.04,113.0,58.57983043]
[1744293473990,67.42573043,113.05,113.0,58.57983043]
[1744293474188,67.42573043,113.05,112.99,8.9129]
[1744293474403,78.09573043,113.06,113.01,58.57983043]
[1744293474606,10.6706,113.06,113.03,58.57983043]
[1744293474783,0.03,113.07,113.03,58.57983043]
[1744293475502,0.03,113.07,113.05,58.57983043]
[1744293475699,0.03,113.07,113.06,77.22947929]
[1744293475897,0.03,113.07,113.06,86.07427929]
[1744293477416,0.03,113.07,113.05,8.8453]
[1744293477621,0.03,113.07,113.03,32.38964886]
[1744293477821,58.60983043,113.07,113.03,32.38964886]
[1744293478000,84.60983043,113.07,113.03,99.81647929]
[1744293478397,58.57983043,113.06,113.02,8.8477]
[1744293478820,58.57983043,113.05,113.01,86.07787929]
[1744293479328,67.42503043,113.06,113.01,86.07787929]
[1744293479510,58.57983043,113.06,113.01,86.07787929]
[1744293479822,58.57983043,113.06,113.02,58.57983043]
[1744293480118,26.03,113.07,113.04,58.57983043]
[1744293480317,58.57983043,113.05,113.01,8.8484]
[1744293480502,58.57983043,113.05,113.01,67.42823043]
[1744293481003,58.60983043,113.07,113.02,77.22947929]
[1744293481203,58.60983043,113.07,113.04,8.8464]
[1744293481204,0.03,113.07,113.04,8.8464]
[1744293482105,0.03,113.07,113.03,67.42663043]
[1744293482304,0.03,113.07,113.0,18.64964886]
[1744293482305,58.57983043,113.06,113.0,18.64964886]
[1744293482513,58.57983043,113.05,113.01,58.57983043]
[1744293483605,58.57983043,113.05,113.01,67.42853043]
[1744293484232,67.42553043,113.05,113.0,67.42903043]
[1744293485115,67.42553043,113.05,113.01,58.57983043]
[1744293485433,67.42553043,113.05,112.99,18.71264886]
[1744293485434,58.57983043,113.03,112.99,0.063]
[1744293485603,58.57983043,113.0,112.99,0.063]
[1744293487930,84.57983043,113.01,112.99,0.063]
[1744293489104,26.0,113.01,112.99,0.063]
[1744293489322,84.57983043,113.01,112.99,0.063]
[1744293490535,93.42863043,113.01,112.99,0.063]
[1744293490916,84.57983043,113.01,112.99,0.063]
[1744293491437,93.42863043,113.01,112.99,0.063]
[1744293492237,58.57983043,113.0,112.99,0.063]
[1744293492609,93.42863043,113.01,112.99,0.063]
[1744293493218,26.0,113.01,112.99,0.063]
[1744293497125,8.8448,113.06,113.0,39.10525181]
[1744293497425,39.10525181,113.05,113.0,39.10525181]
[1744293497934,0.03,113.07,113.03,39.10525181]
[1744293498122,39.13525181,113.07,113.03,39.10525181]
[1744293498323,47.97935181,113.07,113.02,57.75490067]
[1744293498520,47.97935181,113.07,113.02,39.10525181]
[1744293499048,0.03,113.07,113.04,39.10525181]
[1744293499340,0.03,113.07,113.03,39.10525181]
[1744293499646,39.10525181,113.06,113.01,8.8483]
[1744293499937,0.03,113.07,113.04,8.8464]
[1744293500139,0.03,113.07,113.04,47.95165181]
[1744293500732,39.10525181,113.05,113.01,39.10525181]
[1744293501130,65.10525181,113.06,113.01,39.10525181]
[1744293501326,39.10525181,113.04,113.0,39.10525181]
[1744293501943,47.95145181,113.05,113.0,39.10525181]
[1744293502519,47.95145181,113.05,113.01,39.10525181]
[1744293502741,47.95145181,113.05,113.0,39.10525181]
[1744293502942,47.95035181,113.06,113.01,39.10525181]
[1744293503737,39.10525181,113.05,113.01,18.64964886]
[1744293504042,8.8451,113.06,112.99,48.01845181]
[1744293504043,39.10525181,113.04,112.99,48.01845181]
[1744293504249,39.10525181,113.03,112.99,27.56284886]
[1744293504538,30.9572,113.06,112.99,27.56284886]
[1744293504539,39.10525181,113.04,112.99,66.66810067]
[1744293506548,39.10525181,113.03,112.99,0.063]
[1744293507052,39.10525181,113.02,112.99,0.063]
[1744293507354,47.95165181,113.04,112.99,39.16825181]
[1744293507644,47.95165181,113.04,113.0,18.64964886]
[1744293507834,65.10525181,113.01,112.99,0.063]
[1744293508647,39.10525181,113.0,112.99,0.063]
[1744293508947,47.95475181,113.0,112.99,0.063]
[1744293510724,48.23907495,113.0,112.99,0.063]
[1744293511826,51.52449371,113.0,112.99,0.063]
[1744293512955,26.0,112.97,112.94,0.063]
[1744293513125,39.10525181,112.95,112.94,0.063]
[1744293513637,39.10525181,112.96,112.94,0.063]
[1744293513846,26.0,112.97,112.94,0.063]
[1744293514050,65.10525181,112.97,112.94,0.063]
[1744293514955,26.0,112.95,112.94,0.063]
[1744293515741,42.39049644,112.95,112.94,0.063]
[1744293516447,53.69391958,112.95,112.94,0.0001]
[1744293516651,26.28432314,112.93,112.92,0.063]
[1744293516854,104.49482676,112.93,112.92,0.063]
[1744293517029,73.96025181,112.93,112.92,0.063]
[1744293517449,77.24549644,112.93,112.92,0.063]
[1744293519427,77.52981958,112.93,112.92,0.063]
[1744293519827,74.24457495,112.93,112.92,0.063]
[1744293520251,113.34982676,112.93,112.9,0.063]
[1744293520455,39.38957495,112.91,112.9,0.063]
[1744293520628,26.0,112.89,112.88,0.063]
[1744293520828,65.10525181,112.89,112.88,0.063]
[1744293521233,68.37100187,112.89,112.88,0.063]
[1744293522045,65.10525181,112.89,112.88,0.063]
[1744293522360,73.96335181,112.89,112.88,0.063]
[1744293522742,65.10525181,112.89,112.88,0.063]
[1744293523254,73.96335181,112.89,112.88,0.063]
[1744293523555,65.10525181,112.89,112.88,0.063]
[1744293523859,73.96335181,112.89,112.88,0.063]
[1744293526343,126.98682676,112.89,112.85,0.063]
[1744293526545,78.21050362,112.86,112.85,0.063]
[1744293526870,47.96575181,112.86,112.85,0.063]
[1744293527648,8.8601,112.87,112.85,0.063]
[1744293527849,39.10525181,112.86,112.85,0.063]
[1744293528542,8.8601,112.87,112.85,0.063]
[1744293528543,39.10525181,112.87,112.85,0.063]
[1744293528939,39.10525181,112.86,112.85,0.063]
[1744293529462,8.8597,112.87,112.85,0.063]
[1744293529860,39.10525181,112.86,112.85,0.063]
[1744293530972,47.96575181,112.86,112.85,0.063]
[1744293531257,8.8593,112.88,112.85,0.063]
[1744293531647,47.96455181,112.88,112.85,0.063]
[1744293532070,39.10525181,112.88,112.85,0.063]
[1744293532269,73.96365181,112.89,112.85,0.063]
[1744293532566,39.10525181,112.88,112.85,0.063]
[1744293533051,47.96445181,112.88,112.85,0.063]
[1744293533252,39.10525181,112.87,112.85,0.063]
[1744293533637,39.10525181,112.86,112.85,0.063]
[1744293534366,8.8592,112.88,112.85,0.063]
[1744293534546,39.10525181,112.86,112.85,0.063]
[1744293535265,47.96575181,112.86,112.85,0.063]
[1744293537373,87.07100362,112.86,112.85,0.063]
[1744293537584,87.35532676,112.86,112.85,0.063]
[1744293538391,0.28432314,112.85,112.84,0.063]
[1744293538567,65.38957495,112.83,112.82,0.063]